Cogmind - Beta 11.1 @@@ ROGUE MODE // 2022.10.15 @ 17:56:03 Player: razieltakato Result: Self-destructed Performance ------------- Evolutions (4) 2000 Regions Visited (8) 1600 Robots Destroyed (10) 50 Value Destroyed (260) 260 Prototype IDs (3) 60 Alien Tech Used (0) 0 Bonus (35) 35 TOTAL SCORE: 4005 Bonus ------- Follower Combat Kills 35 Cogmind --------- Core Integrity 721/850 Matter 51/300 Energy 9/100 System Corruption 3% Temperature Cool (0) Movement Walking (120) Location -6/Factory Parts ------- > --- POWER (2) -------- (None) > --- PROPULSION (6) --- Flexi-carbon Leg Flexi-carbon Leg > --- UTILITY (5) ------ (None) > --- WEAPON (2) ------- High-powered Shock Rifle > --- INVENTORY (5) ---- Improved Reaction Control System Peak State ------------ > --- POWER ------------ Ion Engine > --- PROPULSION ------- Flight Unit Flight Unit Flight Unit > --- UTILITY ---------- Experimental Sensor Array System Shield > --- WEAPON ----------- Advanced EMP Blaster Advanced EMP Blaster > --- INVENTORY -------- Minigun Grenade Launcher [Rating: 24] Favorites ----------- Power Ion Engine Engine Ion Engine Propulsion Wheel Treads Light Treads Leg Flexi-carbon Leg Wheel Wheel Flight Unit Flight Unit Utility Medium Storage Unit Device Experimental Sensor Array Storage Medium Storage Unit Hackware System Shield Protection Light Armor Plating Weapon Assault Rifle Energy Gun Medium Laser Ballistic Gun Assault Rifle Launcher Grenade Launcher Build | -11 -10 -10 -10 -9 -8 -8 -7 -6 ------- Run | Scr Mat Min Exi Min Mat Sto Fac Fac Slots Evolved 8 | . . . . . 4 . 2 2 Power 1 | . . . . . . . . 1 Propulsion 4 | . . . . . 2 . 1 1 Utility 3 | . . . . . 2 . 1 . Weapon . | . . . . . . . . . Parts Attached 35 | 3 2 . . . 18 4 1 7 Power 2 | . . . . . . . . 2 Engine 2 | . . . . . . . . 2 Core . | . . . . . . . . . Reactor . | . . . . . . . . . Propulsion 12 | 3 . . . . 6 1 . 2 Treads 4 | 2 . . . . 2 . . . Leg 2 | . . . . . . . . 2 Wheel 2 | 1 . . . . 1 . . . Hover . | . . . . . . . . . Flight 4 | . . . . . 3 1 . . Utility 11 | . 2 . . . 7 . 1 1 Device 3 | . . . . . 1 . 1 1 Storage 5 | . 2 . . . 3 . . . Processor . | . . . . . . . . . Hackware 1 | . . . . . 1 . . . Protection 2 | . . . . . 2 . . . Artifact . | . . . . . . . . . Weapon 10 | . . . . . 5 3 . 2 Energy Gun 2 | . . . . . 1 . . 1 Energy Cannon . | . . . . . . . . . Ballistic Gun 3 | . . . . . 3 . . . Ballistic Cannon . | . . . . . . . . . Launcher 5 | . . . . . 1 3 . 1 Special Weapon . | . . . . . . . . . Impact Weapon . | . . . . . . . . . Slashing Weapon . | . . . . . . . . . Piercing Weapon . | . . . . . . . . . Special Melee Weapon . | . . . . . . . . . Unidentified Prototypes 3 | . . . . . 1 1 . 1 Parts Lost 7 | . . . . . . 2 . 5 Power 2 | . . . . . . . . 2 Propulsion 3 | . . . . . . 1 . 2 Utility 1 | . . . . . . 1 . . Weapon 1 | . . . . . . . . 1 Highest Loss Streak 2 | . . . . . . 2 . 2 To Critical Strikes . | . . . . . . . . . Average Slot Usage (%) 76 | . 99 100 100 100 88 58 30 25 Engine 10 | . 14 14 14 14 9 9 7 3 Treads 9 | . 14 14 14 14 12 . . . Wheel 9 | . 14 14 14 14 13 . . . Flight 5 | . . . . . 6 22 15 9 Device 1 | . . . . . 1 6 . 1 Storage 16 | . 27 28 28 28 13 . . . Hackware 1 | . . . . . . 9 7 3 Protection 2 | . . . . . 12 . . . Energy Gun 7 | . 14 14 14 14 2 . . . Ballistic Gun 9 | . 14 14 14 14 13 3 . . Launcher 1 | . . . . . 1 7 . 1 Naked Turns . | . . . . . . . . . Heaviest Build 176 | 14 29 29 29 29 176 18 5 9 Greatest Support 40 | 10 10 10 10 10 20 12 8 40 Greatest Overweight (x) 8 | 1 2 2 2 2 8 1 . 1 Average Overweight (x) 1 | 1 1 2 2 2 2 . . . Largest Inventory Capacity 25 | 8 10 10 10 10 25 5 5 5 Average Capacity 9 | 8 9 10 10 10 18 5 5 5 Most Carried 14 | 6 10 10 10 10 14 2 2 4 Average Carried 6 | 6 7 10 10 9 7 . 1 1 Final Capacity 10 | 8 10 10 10 10 5 5 5 5 Final Carried 10 | 6 10 10 10 10 . 1 2 1 Class Distribution -------------------- 100% | Mutant Dominant Class ---------------- Mutant | -10/Materials Mutant | -10/Mines Mutant | -10/Exiles Mutant | -9/Mines Mutant | -8/Materials Mutant | -8/Storage Mutant | -7/Factory Mutant | -6/Factory Resources | -11 -10 -10 -10 -9 -8 -8 -7 -6 ----------- Run | Scr Mat Min Exi Min Mat Sto Fac Fac Matter Collected 467 | 251 41 . . 37 54 84 . . Remotely . | . . . . . . . . . Salvage Created 401 | 120 88 . . 99 94 . . . Parts 22 | 3 3 . . 6 10 . . . Haulers Intercepted . | . . . . . . . . . Recyclers Shooed . | . . . . . . . . . Parts Field Recycled . | . . . . . . . . . Retrieved Matter . | . . . . . . . . . Parts Self-Destructed . | . . . . . . . . . Prevented . | . . . . . . . . . Kills | -11 -10 -10 -10 -9 -8 -8 -7 -6 ------- Run | Scr Mat Min Exi Min Mat Sto Fac Fac Combat Hostiles Destroyed 8 | . 2 . . 2 4 . . . Guns 8 | . 2 . . 2 4 . . . Classes Destroyed 5 | 2 1 . . . 2 . . . Tunneler 1 | 1 . . . . . . . . Recycler 1 | 1 . . . . . . . . Swarmer 3 | . . . . . 3 . . . Grunt 4 | . 2 . . 2 . . . . Sentry 1 | . . . . . 1 . . . Best Kill Streak 3 | 2 1 . . 2 3 . . . Combat Bots Only 3 | . 1 . . 2 3 . . . Max Kills in Single Turn 1 | 1 1 . . 1 1 . . . Gunslinging . | . . . . . . . . . Exploded . | . . . . . . . . . Melee . | . . . . . . . . . Uniques/NPCs Destroyed . | . . . . . . . . . Combat | -11 -10 -10 -10 -9 -8 -8 -7 -6 -------- Run | Scr Mat Min Exi Min Mat Sto Fac Fac Damage Taken 998 | . 58 . . 82 182 165 . 511 Core 183 | . . . . 17 23 14 . 129 Absorbed by Shields . | . . . . . . . . . Regen/Repaired (Parts) 17 | . . . . . . 17 . . Core Remaining (%) 96 | 100 . . . 93 . 93 100 . Volleys Fired 35 | 7 7 . . 6 13 . . 2 Largest 2 | 2 2 . . 2 2 . . 1 Hottest 80 | 70 70 . . 70 80 . . 60 Shots Fired 68 | 14 14 . . 12 26 . . 2 Gun 65 | 14 14 . . 12 23 . . 2 Cannon . | . . . . . . . . . Launcher 3 | . . . . . 3 . . . Special . | . . . . . . . . . Kinetic 40 | 7 7 . . 6 20 . . . Thermal 23 | 7 7 . . 6 3 . . . Explosive 3 | . . . . . 3 . . . Electromagnetic 2 | . . . . . . . . 2 Robot Hit Streak 9 | 5 8 . . 8 9 . . 1 Robot Miss Streak 5 | 1 2 . . 1 5 . . 1 Penetration Max . | . . . . . . . . . Secondary Targets . | . . . . . . . . . Shots Hit Robots 38 | 10 8 . . 10 9 . . 1 Core Hits 21 | 3 5 . . 4 9 . . . Critical Kills . | . . . . . . . . . Critical Parts Destroyed . | . . . . . . . . . Critical Strikes 2 | . . . . 1 1 . . . Burn 2 | . . . . 1 1 . . . Melee Attacks . | . . . . . . . . . Impact . | . . . . . . . . . Slashing . | . . . . . . . . . Piercing . | . . . . . . . . . Sneak Attacks . | . . . . . . . . . Combat Hostiles . | . . . . . . . . . Follow-up Attacks . | . . . . . . . . . Damage Inflicted 522 | 138 104 . . 140 136 . . 4 Guns 463 | 138 104 . . 122 95 . . 4 Cannons . | . . . . . . . . . Explosions 41 | . . . . . 41 . . . Melee . | . . . . . . . . . Ramming 18 | . . . . 18 . . . . Kinetic 234 | 63 42 . . 59 70 . . . Thermal 225 | 75 62 . . 63 25 . . . Explosive 41 | . . . . . 41 . . . Electromagnetic 4 | . . . . . . . . 4 Impact . | . . . . . . . . . Slashing . | . . . . . . . . . Piercing . | . . . . . . . . . Highest Corruption 3 | . 2 2 2 2 . . . 3 Average Corruption 2 | . 1 2 2 2 . . . 2 Corruption Purged . | . . . . . . . . . Corruption Blocked . | . . . . . . . . . Effects 8 | . . 2 . 6 . . . . Message Errors 1 | . . 1 . . . . . . Matter Fused 4 | . . 1 . 3 . . . . Heat Flow Errors 1 | . . . . 1 . . . . Energy Discharges 1 | . . . . 1 . . . . Data Loss (minor) 1 | . . . . 1 . . . . Overload Shots . | . . . . . . . . . Overflow Damage . | . . . . . . . . . Projectiles . | . . . . . . . . . Explosions . | . . . . . . . . . Melee . | . . . . . . . . . Knockbacks . | . . . . . . . . . Impact . | . . . . . . . . . Kinetic . | . . . . . . . . . Secondary . | . . . . . . . . . Self-Inflicted Damage 9 | . . . . 9 . . . . Shots . | . . . . . . . . . Rammed 2 | . . . . 2 . . . . Targets Rammed 2 | . . . . 2 . . . . Kicked . | . . . . . . . . . Crushed . | . . . . . . . . . Highest Temperature 258 | 63 72 . . 258 36 22 . . Average Temperature 36 | 31 34 . . 67 9 15 . . Received Heat Transfer 228 | . 33 . . 39 18 90 . 48 Effects 1 | . . . . 1 . . . . Energy Bleed 1 | . . . . 1 . . . . Siege Activations . | . . . . . . . . . Robots Corrupted . | . . . . . . . . . Combat Hostiles . | . . . . . . . . . Parts Fried . | . . . . . . . . . Impact Corruptions . | . . . . . . . . . Robots Melted . | . . . . . . . . . Combat Hostiles . | . . . . . . . . . Parts Melted . | . . . . . . . . . Heat Transferred 814 | 222 185 . . 259 148 . . . Parts Sabotaged . | . . . . . . . . . Parts Stolen . | . . . . . . . . . Parts Stripped . | . . . . . . . . . Power Chain Reactions . | . . . . . . . . . Missiles Intercepted . | . . . . . . . . . Alert | -11 -10 -10 -10 -9 -8 -8 -7 -6 ------- Run | Scr Mat Min Exi Min Mat Sto Fac Fac Peak Influence 170 | 10 117 51 . 50 170 71 28 71 Initial 71 | . 6 45 . . 19 71 28 13 Average 42 | 7 56 48 . 18 51 64 28 43 Maximum Alert Level . | . . . . . . . . . Low Security (%) 100 | 100 100 100 . 100 100 100 100 100 Level 1 . | . . . . . . . . . Level 2 . | . . . . . . . . . Level 3 . | . . . . . . . . . Level 4 . | . . . . . . . . . Level 5 . | . . . . . . . . . High Security . | . . . . . . . . . Max Security . | . . . . . . . . . Squads Dispatched 6 | . . . . . . 5 . 1 Investigation . | . . . . . . . . . Extermination 1 | . . . . . . . . 1 Reinforcement 3 | . . . . . . 3 . . Assault 2 | . . . . . . 2 . . Garrison . | . . . . . . . . . Intercept . | . . . . . . . . . Searches Triggered . | . . . . . . . . . Construction Impeded . | . . . . . . . . . Haulers Reinforced . | . . . . . . . . . Active Scanning Responses . | . . . . . . . . . Cargo Convoy Interrupts . | . . . . . . . . . Stealth | -11 -10 -10 -10 -9 -8 -8 -7 -6 --------- Run | Scr Mat Min Exi Min Mat Sto Fac Fac Distress Signals 1 | . 1 . . . . . . . Communications Jammed . | . . . . . . . . . Distress Signals . | . . . . . . . . . Times Spotted 35 | . 4 . . 2 4 19 . 6 Peak Tracking Total 17 | . 2 . . 2 3 17 . 5 Tactical Retreats 1 | . 1 . . . . . . . Traps | -11 -10 -10 -10 -9 -8 -8 -7 -6 ------- Run | Scr Mat Min Exi Min Mat Sto Fac Fac Traps Triggered 4 | . 2 . . . 1 1 . . Indirectly . | . . . . . . . . . Trap Hack Attempts . | . . . . . . . . . Triggered . | . . . . . . . . . Disarmed . | . . . . . . . . . Reprogrammed . | . . . . . . . . . Reused . | . . . . . . . . . Traps Extracted . | . . . . . . . . . Installed . | . . . . . . . . . Triggered . | . . . . . . . . . Machines | -11 -10 -10 -10 -9 -8 -8 -7 -6 ---------- Run | Scr Mat Min Exi Min Mat Sto Fac Fac Machines Disabled 1 | . . . . . 1 . . . Max in Single Turn 1 | . . . . . 1 . . . Machines Sabotaged . | . . . . . . . . . Garrisons Compromised . | . . . . . . . . . Overloaded Fab Kills . | . . . . . . . . . Hacking | -11 -10 -10 -10 -9 -8 -8 -7 -6 --------- Run | Scr Mat Min Exi Min Mat Sto Fac Fac Machines Accessed 8 | . 2 1 . . . 1 . 4 Terminals 4 | . 1 1 . . . . . 2 Fabricators . | . . . . . . . . . Repair Stations 1 | . . . . . . 1 . . Recycling Units 3 | . 1 . . . . . . 2 Scanalyzers . | . . . . . . . . . Garrison Access . | . . . . . . . . . Total Hacks 19 | . 4 3 . . . 3 . 9 Successful 16 | . 3 3 . . . 3 . 7 Failed 3 | . 1 . . . . . . 2 Catastrophic 2 | . 1 . . . . . . 1 Database Lockouts . | . . . . . . . . . Manual . | . . . . . . . . . Terminals 12 | . 3 3 . . . . . 6 Fabricators . | . . . . . . . . . Repair Stations 3 | . . . . . . 3 . . Recycling Units 4 | . 1 . . . . . . 3 Scanalyzers . | . . . . . . . . . Garrison Access . | . . . . . . . . . Terminal Hacks 9 | . 2 3 . . . . . 4 Record 5 | . 1 1 . . . . . 3 Level Access Points 1 | . . . . . . . . 1 Branch Access Points 1 | . 1 . . . . . . . Dispatch Records 1 | . . 1 . . . . . . Zone Layout 1 | . . 1 . . . . . . Fabricator Hacks . | . . . . . . . . . Repair Station Hacks 3 | . . . . . . 3 . . Scan Component 1 | . . . . . . 1 . . Repair 1 | . . . . . . 1 . . Refit 1 | . . . . . . 1 . . Recycling Unit Hacks 4 | . 1 . . . . . . 3 Process 2 | . 1 . . . . . . 1 Report Inventory 2 | . . . . . . . . 2 Scanalyzer . | . . . . . . . . . Garrison Access Hacks . | . . . . . . . . . Unauthorized Hacks . | . . . . . . . . . Terminals . | . . . . . . . . . Fabricators . | . . . . . . . . . Repair Stations . | . . . . . . . . . Recycling Units . | . . . . . . . . . Scanalyzers . | . . . . . . . . . Garrison Access . | . . . . . . . . . Data Cores Recovered . | . . . . . . . . . Used . | . . . . . . . . . Hacking Detections 5 | . 1 1 . . . 1 . 2 Full Trace Events . | . . . . . . . . . Feedback Events . | . . . . . . . . . Feedback Blocked . | . . . . . . . . . Robot Schematics Acquired . | . . . . . . . . . Robots Built . | . . . . . . . . . Authchips . | . . . . . . . . . Time . | . . . . . . . . . Total Robot Build Rating . | . . . . . . . . . Part Schematics Acquired . | . . . . . . . . . Parts Built . | . . . . . . . . . Authchips . | . . . . . . . . . Time . | . . . . . . . . . Total Part Build Rating . | . . . . . . . . . Parts Repaired 1 | . . . . . . 1 . . Time 26 | . . . . . . 26 . . Parts Recycled . | . . . . . . . . . Recycled Matter 24 | . 24 . . . . . . . Retrieved Matter . | . . . . . . . . . Retrieved Components . | . . . . . . . . . Parts Scanalyzed . | . . . . . . . . . Part Schematics Acquired . | . . . . . . . . . Parts Damaged . | . . . . . . . . . Bothacking | -11 -10 -10 -10 -9 -8 -8 -7 -6 ------------ Run | Scr Mat Min Exi Min Mat Sto Fac Fac Used RIF Installer . | . . . . . . . . . Robots Hacked . | . . . . . . . . . Non-combat . | . . . . . . . . . Combat . | . . . . . . . . . Robot Hacks Applied . | . . . . . . . . . Relay Couplers Released . | . . . . . . . . . Fabnet Peak Effective % . | . . . . . . . . . Robots Rewired . | . . . . . . . . . Allies Hacked . | . . . . . . . . . Hacks Repelled . | . . . . . . . . . Allies | -11 -10 -10 -10 -9 -8 -8 -7 -6 -------- Run | Scr Mat Min Exi Min Mat Sto Fac Fac Total Allies 2 | . . . . . . 2 . . Largest Group 2 | . . . . . . 2 . . Highest-Rated Group 62 | . . . . . . 62 . . Highest-Rated Ally 31 | . . . . . . 31 . . Total Orders . | . . . . . . . . . Ally Attacks 10 | . . . . . . 10 . . Total Damage 129 | . . . . . . 129 . . Kills 1 | . . . . . . 1 . . Allies Corrupted . | . . . . . . . . . Allies Melted . | . . . . . . . . . Intel | -11 -10 -10 -10 -9 -8 -8 -7 -6 ------- Run | Scr Mat Min Exi Min Mat Sto Fac Fac Robot Analysis Total . | . . . . . . . . . Derelict Logs Recovered 2 | . . 1 . 1 . . . . Drone Launches . | . . . . . . . . . Drone Recoveries . | . . . . . . . . . Exploration | -11 -10 -10 -10 -9 -8 -8 -7 -6 ------------- Run | Scr Mat Min Exi Min Mat Sto Fac Fac Turns Passed 1382 | 62 266 109 35 268 225 111 26 280 Spaces Moved 1401 | 39 207 98 32 216 171 140 56 442 Core . | . . . . . . . . . Treads . | . . . . . . . . . Legs 65 | . . . . . . . . 65 Wheels 677 | 39 207 98 32 216 85 . . . Hover . | . . . . . . . . . Flight 659 | . . . . . 86 140 56 377 Fastest Speed 34 | 95 95 110 110 110 34 34 37 37 Average Speed 80 | 95 109 110 110 110 89 36 37 58 Slowest Speed 200 | 95 110 110 110 110 200 114 37 120 Overloaded Moves . | . . . . . . . . . Propulsion Burnouts . | . . . . . . . . . Robots Hopped . | . . . . . . . . . Cave-ins Triggered . | . . . . . . . . . Exploration Rate (%) 23 | 3 41 22 8 59 18 48 3 11 Regions Visited 8 Branch Regions 4 Pre-discovered Areas 1 | . . . . 1 . . . . Known Exits Taken 1 | . 1 . . . . . . . Unknown Exits Taken 7 | 1 . 1 1 1 1 1 1 . Scrap Searched 3 | . . 1 . 2 . . . . Spaces Dug . | . . . . . . . . . Terrain Destroyed 18 | . . . . . 18 . . . Melee . | . . . . . . . . . Projectile . | . . . . . . . . . AOE 18 | . . . . . 18 . . . Terrain Rammed . | . . . . . . . . . Walls Destroyed . | . . . . . . . . . Machines Disabled . | . . . . . . . . . Actions | -11 -10 -10 -10 -9 -8 -8 -7 -6 --------- Run | Scr Mat Min Exi Min Mat Sto Fac Fac Total 1592 | 48 232 99 31 234 225 203 60 460 Wait 56 | . 12 . . 9 . 32 3 . Move 1393 | 38 206 97 31 215 170 139 55 442 Hop . | . . . . . . . . . Pick Up 7 | . 4 1 . 1 1 . . . Fast Attach 17 | . 1 . . . 4 3 1 8 Attach 9 | . . . . . 8 1 . . Detach 20 | . . . . . 9 6 1 4 Swap 10 | 3 1 . . . 6 . . . Drop 25 | . 1 1 . 1 14 4 . 4 Fire 35 | 7 7 . . 6 13 . . 2 Melee . | . . . . . . . . . Ram 2 | . . . . 2 . . . . Kick . | . . . . . . . . . Crush . | . . . . . . . . . Escape Stasis 18 | . . . . . . 18 . . Rewire . | . . . . . . . . . Trap . | . . . . . . . . . Miscellaneous . | . . . . . . . . . Route ------- -11/Scrapyard -10/Materials (discovered 2 exits: [*Mat] / *Min) -10/Mines -10/Exiles -9/Mines -8/Materials -8/Storage -7/Factory -6/Factory (discovered 4 exits: Fac x4) History --------- Turn | Location | Event 6 | -11/Scrapyard | Discovered new exit (range 3) 63 | -11/Scrapyard | Entered Materials 154 | -10/Materials | Identified exit to Mines 189 | -10/Materials | Discovered new exit (range 14) 314 | -10/Materials | Build established: Mutant 329 | -10/Materials | Entered Mines 358 | -10/Mines | Learned Materials emergency access door positions 378 | -10/Mines | Met a Derelict bent on vengeance 433 | -10/Mines | Deemed a non-threat by the Exiles lab entrance 433 | -10/Mines | Discovered new exit (range 5) 438 | -10/Mines | Entered Exiles 458 | -10/Exiles | Discovered new exit (range 14) 473 | -10/Exiles | Entered Mines 502 | -9/Mines | Learned Materials emergency access door positions 531 | -9/Mines | Found a damaged Exp. Sensor Array with a note attached 536 | -9/Mines | Found Prototype Device 675 | -9/Mines | Learned location of Storage (-8) 730 | -9/Mines | Discovered new exit (range 11) 741 | -9/Mines | Entered Materials 741 | -8/Materials | Evolved 4 slots: Propulsion x2, Utility x2 927 | -8/Materials | Discovered new exit (range 15) 928 | -8/Materials | Identified Exp. Sensor Array 966 | -8/Materials | Entered Storage 1003 | -8/Storage | Met a pair of Derelict thieves 1044 | -8/Storage | Repaired Flight Unit 1072 | -8/Storage | Discovered new exit (range 16) 1077 | -8/Storage | Entered Factory 1077 | -7/Factory | Evolved 2 slots: Propulsion x1, Utility x1 1098 | -7/Factory | Discovered new exit (range 13) 1103 | -7/Factory | Entered another Factory area 1103 | -6/Factory | Evolved 2 slots: Power x1, Propulsion x1 1246 | -6/Factory | Identified exit to Factory 1383 | -6/Factory | Self-destructed Last Messages --------------- 01277_ Penetrated by Slug. 01278_ Lgt. Deuterium Engine destroyed. 01280_ Penetrated by Slug. 01280_ Slug penetrates Wall. 01280_ U-05 Engineer destroyed. 01295_ Acquired Flexi-carbon Leg. 01302_ Acquired Imp. Proton Missile Launcher. 01317_ Slug penetrates Wall. 01321_ K-01 Serf collects debris. 01341_ K-01 Serf cleans the Assembly Bed. 01342_ Slug penetrates Wall. 01342_ K-01 Serf cleans the Assembly Bed. 01345_ Slug penetrates Wall. 01347_ K-01 Serf cleans the Assembly Bed. 01348_ Slug penetrates Wall. 01349_ K-01 Serf cleans the Assembly Bed. 01353_ ALERT: Rogue bot located, Programmers report to Factory Zone 7L. 01362_ Flight Unit destroyed. 01362_ Imp. Proton Missile Launcher destroyed. 01377_ Acquired Hpw. Shock Rifle. Map ----- +----------------------------------------------------+ | ????? ??? ??" """ ??????????????????????????????? | | ???? "?? """ """ #??###????????????????????????? | | ???? ?? #?? ????????????????????????? | | ###? ?? #?? ????????????????????????? | | ? ?? #?? ????????????????????????? | | ? #?? ????????????????????????? | | """" """" """" #?? ????????????????????????? | | """" """" """" #?? ????????????????????????? | | """" """" """" #?? ????????????????????????? | | """" """" """" #?? ????????????????????????? | | """" """" """" ##? ????????????????????????? | | """" """" """" ###/#############????????????? | | ???????????? | | ???????????? | | ???????????? | | ### ###/######+#?????????????????? | | #####+############### =#????????????????????? | | #???????# """h #????????????????????? | | ! #???????# """ #????????????????????? | | #???????# """ +????????????????????? | | """ """ #???????# p#????????????????????? | | """ """ #???????# """ #????????????????????? | | """ """ #???????# """ #????????????????????? | | #???????# """ #????????????????????? | | #???????# #????????????????????? | | #???????#= @ #????????????????????? | | #???????# #????????????????????? | | #???????#########????????????????????? | | #????????????????????????????????????? | | #############????????????????????????????????????? | | ?????????????????????????????????????????????????? | | ?????????????????????????????????????????????????? | | ?????????????????????????????????????????????????? | | ?????????????????????????????????????????????????? | | ?????????????????????????????????????????????????? | | ?????????????????????????????????????????????????? | | ?????????????????????????????????????????????????? | | ?????????????????????????????????????????????????? | | ?????????????????????????????????????????????????? | | ?????????????????????????????????????????????????? | | ?????????????????????????????????????????????????? | | ?????????????????????????????????????????????????? | | ?????????????????????????????????????????????????? | | ?????????????????????????????????????????????????? | | ?????????????????????????????????????????????????? | | ?????????????????????????????????????????????????? | | ?????????????????????????????????????????????????? | | ?????????????????????????????????????????????????? | | ?????????????????????????????????????????????????? | | ?????????????????????????????????????????????????? | +----------------------------------------------------+ Best States ------------- Heat Dissipation 37 Energy Generation 23 Energy Capacity 300 Matter Stores 300 Matter Capacity 300 Sight Range 16 Robot Scan Range 20 Terrain Scan Density 10 Armor Coverage 300 Evasion (%) 72 Defensive Hacking 10 Item Schematics ----------------- None Robot Schematics ------------------ None Fabricated ------------ Nothing Alien Tech Used ----------------- None Achievements -------------- Made in Tau Ceti IV Risk Taker Tank Tourist Challenges ------------ None Game ------ Seed CatalystTiamatSuite Manual? 0 Play Time 00:58:20 Cumulative 3.6 hours Start 2022.10.14 @ 15:40:11 End 2022.10.15 @ 17:56:03 Sessions 9 Manual Loads 0 Difficulty Rogue Special Mode None Game No. 5 Rogue 5 Adventurer 0 Explorer 0 Win Type - Total 0 Types 0/0/0/0/0/0/0/0/0 Lore% 2 Gallery% 5 Achievement% 5 Wizard Run 0 Options --------- ASCII 0 Keyboard 1 Movement Arrows Keybinds 0 Fullscreen 1 Font 18/SmallcapsGlow Map View 76x50 Tactical HUD 1 Map Filters NONE Filters NONE Steam 1 RUN: 72d4f4ba-ac1d-4592-84b3-2602aee93fc3